fUST/lending_fUST_20250724
["ID","MTS","AMOUNT","RATE_DAILY","PERIOD"]
[374498878,1753325439966,-460.0,0.00019178,2]
[374498879,1753325439976,-460.0,0.00019178,2]
[374498880,1753325439985,-695.18,0.00019178,2]
[374498881,1753325439995,-224.13141013,0.00019178,2]
[374498882,1753325440004,-460.0,0.00019178,2]
[374498883,1753325440013,-460.0,0.00019178,2]
[374498884,1753325440022,-460.0,0.00019178,2]
[374498885,1753325440031,-460.0,0.00019178,2]
[374498886,1753325440041,-460.78483401,0.00019178,2]
[374498887,1753325440051,-460.0,0.00019178,2]
[374498888,1753325440060,-460.0,0.00019178,2]
[374498889,1753325440070,-460.0,0.00019178,2]
[374498890,1753325440079,-462.55157068,0.00019178,2]
[374498891,1753325440089,-460.0,0.00019178,2]
[374498892,1753325440099,-460.0,0.00019178,2]
[374498893,1753325440109,-2580.49,0.00019178,2]
[374498894,1753325440125,-424.0027561,0.00019178,2]
[374498895,1753325440141,-464.77767324,0.00019178,2]
[374498896,1753325440158,-463.47411747,0.00019178,2]
[374498897,1753325440167,-460.0,0.00019178,2]
[374498898,1753325440181,-460.0,0.00019178,2]
[374498899,1753325440190,-460.0,0.00019178,2]
[374498900,1753325440200,-1046.29,0.00019178,2]
[374498901,1753325440209,-460.0,0.00019178,2]
[374498908,1753325440349,-504.90434697,0.00019178,2]
[374498910,1753325440359,-460.0,0.00019178,2]
[374498912,1753325440369,-203.86226003,0.00019178,2]
[374498913,1753325440380,-500.0,0.00019178,2]
[374498915,1753325440389,-500.0,0.00019178,2]
[374498917,1753325440398,-460.0,0.00019178,2]
[374498918,1753325440408,-157.5416158,0.00019178,2]
[374498921,1753325440429,-342.4583842,0.00019178,2]
[374498923,1753325440439,-464.33249464,0.00019178,2]
[374498924,1753325440448,-460.0,0.00019178,2]
[374498925,1753325440458,-270.58295124,0.00019178,2]
[374498926,1753325440470,-460.0,0.00019178,2]
[374498927,1753325440479,-460.0,0.00019178,2]
[374498928,1753325440489,-460.0,0.00019178,2]
[374498929,1753325440498,-460.0,0.00019178,2]
[374498930,1753325440508,-460.0,0.00019178,2]
[374498931,1753325440518,-460.0,0.00019178,2]
[374498932,1753325440530,-460.0,0.00019178,2]
[374498933,1753325440540,-1083.0,0.00019178,2]
[374498934,1753325440550,-460.0,0.00019178,2]
[374498935,1753325440559,-462.90766855,0.00019178,2]
[374498936,1753325440568,-462.43499708,0.00019178,2]
[374498937,1753325440578,-460.0,0.00019178,2]
[374498938,1753325440587,-462.10008331,0.00019178,2]
[374498939,1753325440597,-460.0,0.00019178,2]
[374498940,1753325440606,-757.0,0.00019178,2]
[374498941,1753325440616,-460.0,0.00019178,2]
[374498942,1753325440625,-461.80993138,0.00019178,2]
[374498943,1753325440636,-460.0,0.00019178,2]
[374498944,1753325440645,-460.81690429,0.00019178,2]
[374498945,1753325440654,-1599.08,0.00019178,2]
[374498946,1753325440664,-460.0,0.00019178,2]
[374498947,1753325440674,-442.08402662,0.00019178,2]
[374498948,1753325440683,-460.0,0.00019178,2]
[374498949,1753325440693,-151.0,0.00019178,2]
[374498950,1753325440704,-460.0,0.00019178,2]
[374498951,1753325440713,-460.0,0.00019178,2]
[374498952,1753325440723,-464.83260408,0.00019178,2]
[374498953,1753325440732,-460.0,0.00019178,2]
[374498954,1753325440741,-460.0,0.00019178,2]
[374498955,1753325440751,-460.0,0.00019178,2]
[374498956,1753325440760,-821.09,0.00019178,2]
[374498957,1753325440770,-463.58872839,0.00019178,2]
[374498958,1753325440779,-277.8647664,0.00019178,2]
[374498959,1753325440788,-460.0,0.00019178,2]
[374498960,1753325440798,-460.0,0.00019178,2]
[374498961,1753325440808,-460.0,0.00019178,2]
[374498962,1753325440817,-463.74541521,0.00019178,2]
[374498963,1753325440826,-221.1744734,0.00019178,2]
[374498964,1753325440835,-460.0,0.00019178,2]
[374498965,1753325440845,-460.0,0.00019178,2]
[374498966,1753325440854,-1342.6,0.00019178,2]
[374498967,1753325440864,-460.0,0.00019178,2]
[374498968,1753325440874,-460.0,0.00019178,2]
[374498969,1753325440884,-460.91638229,0.00019178,2]
[374498970,1753325440894,-460.0,0.00019178,2]
[374498971,1753325440903,-467.94,0.00019178,2]
[374498972,1753325440913,-460.0,0.00019178,2]
[374498973,1753325440923,-460.0,0.00019178,2]
[374498974,1753325440932,-460.0,0.00019178,2]
[374498975,1753325440942,-462.36074759,0.00019178,2]
[374498976,1753325440952,-433.51989128,0.00019178,2]
[374498977,1753325440961,-460.0,0.00019178,2]
[374498978,1753325440971,-461.60396609,0.00019178,2]
[374498979,1753325440980,-544.95,0.00019178,2]
[374498980,1753325440989,-352.46246676,0.00019178,2]
[374498981,1753325440998,-460.0,0.00019178,2]
[374498982,1753325441007,-460.0,0.00019178,2]
[374498983,1753325441016,-330.60084364,0.00019178,2]
[374498984,1753325441026,-460.0,0.00019178,2]
[374498985,1753325441036,-460.0,0.00019178,2]
[374498986,1753325441045,-460.0,0.00019178,2]
[374498987,1753325441055,-464.12071749,0.00019178,2]
[374498988,1753325441065,-460.0,0.00019178,2]
[374498989,1753325441074,-460.0,0.00019178,2]
[374498990,1753325441083,-1006.03989663,0.00019178,2]
[374498991,1753325441093,-1885.12,0.00019178,2]
[374498992,1753325441102,-463.42188554,0.00019178,2]
[374498993,1753325441112,-460.0,0.00019178,2]
[374498994,1753325441121,-460.0,0.00019178,2]
[374498995,1753325441131,-460.0,0.00019178,2]
[374498996,1753325441141,-460.0,0.00019178,2]
[374498997,1753325441150,-460.0,0.00019178,2]
[374498998,1753325441159,-460.0,0.00019178,2]
[374498999,1753325441168,-460.0,0.00019178,2]
[374499000,1753325441180,-460.0,0.00019178,2]
[374499001,1753325441189,-461.13511071,0.00019178,2]
[374499002,1753325441198,-519.99,0.00019178,2]
[374499003,1753325441208,-460.0,0.00019178,2]
[374499004,1753325441219,-462.91411567,0.00019178,2]
[374499005,1753325441228,-460.0,0.00019178,2]
[374499006,1753325441238,-460.0,0.00019178,2]
[374499007,1753325441247,-460.0,0.00019178,2]
[374499008,1753325441257,-460.0,0.00019178,2]
[374499009,1753325441267,-467.58750791,0.00019178,2]
[374499010,1753325441276,-460.0,0.00019178,2]
[374499011,1753325441286,-460.0,0.00019178,2]
[374499012,1753325441295,-460.0,0.00019178,2]
[374499013,1753325441304,-460.0,0.00019178,2]
[374499014,1753325441314,-263.78297398,0.00019178,2]
[374499015,1753325441323,-460.0,0.00019178,2]
[374499016,1753325441333,-460.0,0.00019178,2]
[374499017,1753325441343,-461.09431257,0.00019178,2]
[374499018,1753325441352,-460.0,0.00019178,2]
[374499019,1753325441362,-460.0,0.00019178,2]
[374499020,1753325441371,-460.0,0.00019178,2]
[374499021,1753325441381,-460.0,0.00019178,2]
[374499022,1753325441390,-1426.45,0.00019178,2]
[374499023,1753325441400,-461.36015059,0.00019178,2]
[374499024,1753325441409,-460.0,0.00019178,2]
[374499025,1753325441419,-460.0,0.00019178,2]
[374499026,1753325441428,-460.0,0.00019178,2]
[374499027,1753325441438,-1211.48,0.00019178,2]
[374499028,1753325441448,-465.04220486,0.00019178,2]
[374499029,1753325441459,-460.0,0.00019178,2]
[374499030,1753325441468,-460.0,0.00019178,2]
[374499031,1753325441478,-460.0,0.00019178,2]
[374499032,1753325441487,-461.5231119,0.00019178,2]
[374499033,1753325441497,-460.0,0.00019178,2]
[374499034,1753325441506,-460.0,0.00019178,2]
[374499035,1753325441516,-286.61443479,0.00019178,2]
[374499036,1753325441525,-460.0,0.00019178,2]
[374499037,1753325441536,-463.46504356,0.00019178,2]
[374499038,1753325441546,-460.0,0.00019178,2]
[374499039,1753325441555,-1914.95,0.00019178,2]
[374499040,1753325441565,-460.0,0.00019178,2]
[374499041,1753325441575,-462.54338337,0.00019178,2]
[374499042,1753325441584,-460.0,0.00019178,2]
[374499043,1753325441593,-460.0,0.00019178,2]
[374499044,1753325441603,-460.0,0.00019178,2]
[374499045,1753325441612,-460.0,0.00019178,2]
[374499046,1753325441621,-461.70207426,0.00019178,2]
[374499047,1753325441632,-511.22943217,0.00019178,2]
[374499048,1753325441642,-460.0,0.00019178,2]
[374499049,1753325441651,-461.17515138,0.00019178,2]
[374499050,1753325441661,-460.0,0.00019178,2]
[374499052,1753325441672,-460.0,0.00019178,2]
[374499054,1753325441681,-460.0,0.00019178,2]
[374499056,1753325441690,-460.0,0.00019178,2]
[374499058,1753325441700,-460.0,0.00019178,2]
[374499059,1753325441709,-460.0,0.00019178,2]
[374499060,1753325441719,-460.0,0.00019178,2]
[374499061,1753325441728,-461.95392743,0.00019178,2]
[374499062,1753325441738,-460.0,0.00019178,2]
[374499063,1753325441747,-460.0,0.00019178,2]
[374499064,1753325441758,-462.58627411,0.00019178,2]
[374499065,1753325441768,-460.0,0.00019178,2]
[374499066,1753325441777,-462.30774263,0.00019178,2]
[374499067,1753325441787,-460.0,0.00019178,2]
[374499068,1753325441797,-462.11014609,0.00019178,2]
[374499069,1753325441806,-460.0,0.00019178,2]
[374499070,1753325441816,-460.0,0.00019178,2]
[374499071,1753325441825,-1590.68,0.00019178,2]
[374499072,1753325441834,-460.0,0.00019178,2]
[374499073,1753325441843,-460.0,0.00019178,2]
[374499074,1753325441853,-460.0,0.00019178,2]
[374499075,1753325441862,-460.0,0.00019178,2]
[374499077,1753325441871,-460.0,0.00019178,2]
[374499079,1753325441883,-460.71765756,0.00019178,2]
[374499081,1753325441892,-460.0,0.00019178,2]
[374499083,1753325441901,-460.0,0.00019178,2]
[374499084,1753325441910,-464.28282012,0.00019178,2]
[374499085,1753325441919,-460.0,0.00019178,2]
[374499086,1753325441929,-460.0,0.00019178,2]
[374499087,1753325441939,-754.48,0.00019178,2]
[374499088,1753325441948,-460.0,0.00019178,2]
[374499089,1753325441958,-477.45,0.00019178,2]
[374499090,1753325441968,-460.0,0.00019178,2]
[374499091,1753325441978,-460.0,0.00019178,2]
[374499092,1753325441988,-572.12469711,0.00019178,2]
[374499093,1753325441997,-500.0,0.00019178,2]
[374499094,1753325442007,-460.0,0.00019178,2]
[374499095,1753325442017,-460.0,0.00019178,2]
[374499096,1753325442026,-5538.5,0.00019178,2]
[374499097,1753325442035,-461.72796093,0.00019178,2]
[374499098,1753325442044,-462.15361917,0.00019178,2]
[374499099,1753325442054,-500.0,0.00019178,2]
[374499100,1753325442063,-5000.0,0.00019178,2]
[374499101,1753325442073,-5000.0,0.00019178,2]
[374499102,1753325442083,-5000.0,0.00019178,2]
[374499103,1753325442092,-3042.1131575,0.00019178,2]
[374499104,1753325442102,-54008.0576348,0.00019178,2]
[374499105,1753325442111,-800.066119,0.00019178,2]
[374499106,1753325442121,-666.0,0.00019178,2]
[374499107,1753325442132,-805.20432069,0.00019284,2]
[374499108,1753325442142,-250.0,0.0001932,2]
[374499109,1753325442151,-151.0,0.00019329,2]
[374499110,1753325442160,-153.899278,0.00019329,2]
[374499111,1753325442170,-151.0,0.00019329,2]
[374499112,1753325442183,-151.0,0.00019329,2]
[374499113,1753325442192,-439.816677,0.00019329,2]
[374499114,1753325442201,-439.816677,0.00019329,2]
[374499115,1753325442211,-151.0,0.00019329,2]
[374499116,1753325442220,-362.303516,0.00019329,2]
[374499117,1753325442231,-362.303516,0.00019329,2]
[374499118,1753325442240,-151.0,0.00019329,2]
[374499119,1753325442250,-151.0,0.00019329,2]
[374499120,1753325442259,-151.0,0.00019329,2]
[374499121,1753325442269,-151.0,0.00019329,2]
[374499122,1753325442279,-151.216347,0.00019329,2]
[374499123,1753325442289,-151.0,0.00019329,2]
[374499124,1753325442299,-151.0,0.00019329,2]
[374499125,1753325442308,-100000.0,0.00019329,2]
[374499127,1753325442318,-2644.85819508,0.00019384,2]
[374499128,1753325442328,-151.0,0.00019452,2]
[374499129,1753325442338,-248.21941893,0.00019452,2]
[374499130,1753325442347,-151.0,0.00019452,2]
[374499131,1753325442356,-500.0,0.00019452,2]
[374499132,1753325442367,-500.0,0.00019452,2]
[374499133,1753325442378,-151.51745849,0.00019452,2]
[374499134,1753325442388,-161.04203956,0.00019452,2]
[374499135,1753325442398,-796.0,0.00019452,2]
[374499136,1753325442407,-151.0,0.00019452,2]
[374499137,1753325442417,-151.0,0.00019452,2]
[374499138,1753325442426,-1083.0,0.00019452,2]
[374499139,1753325442436,-151.0,0.00019452,2]
[374499140,1753325442446,-460.0,0.00019452,2]
[374499141,1753325442456,-460.0,0.00019452,2]
[374499142,1753325442466,-460.0,0.00019452,2]
[374499143,1753325442475,-460.0,0.00019452,2]
[374499144,1753325442581,-460.0,0.00019452,2]
[374499145,1753325442591,-151.0,0.00019452,2]
[374499146,1753325442601,-460.0,0.00019452,2]
[374499147,1753325442610,-460.0,0.00019452,2]
[374499148,1753325442620,-462.39955965,0.00019452,2]
[374499149,1753325442630,-573.80635797,0.00019452,2]
[374499150,1753325442640,-460.0,0.00019452,2]
[374499151,1753325442650,-151.0,0.00019452,2]
[374499152,1753325442659,-151.0,0.00019452,2]
[374499153,1753325442668,-460.0,0.00019452,2]
[374499154,1753325442678,-460.0,0.00019452,2]
[374499155,1753325442688,-460.0,0.00019452,2]
[374499156,1753325442697,-461.86207003,0.00019452,2]
[374499157,1753325442707,-460.0,0.00019452,2]
[374499158,1753325442717,-463.56033503,0.00019452,2]
[374499159,1753325442726,-466.01816996,0.00019452,2]
[374499161,1753325442736,-460.0,0.00019452,2]
[374499163,1753325442746,-460.0,0.00019452,2]
[374499165,1753325442755,-460.0,0.00019452,2]
[374499167,1753325442764,-460.0,0.00019452,2]
[374499169,1753325442774,-460.0,0.00019452,2]
[374499171,1753325442783,-460.0,0.00019452,2]
[374499173,1753325442793,-336.46643566,0.00019452,2]
[374499175,1753325442803,-460.0,0.00019452,2]
[374499177,1753325442812,-460.0,0.00019452,2]
[374499179,1753325442822,-460.0,0.00019452,2]
[374499181,1753325442831,-460.0,0.00019452,2]
[374499182,1753325442840,-460.0,0.00019452,2]
[374499183,1753325442851,-460.0,0.00019452,2]
[374499184,1753325442860,-461.78116036,0.00019452,2]
[374499185,1753325442869,-460.0,0.00019452,2]
[374499186,1753325442879,-151.0,0.00019452,2]
[374499187,1753325442888,-460.0,0.00019452,2]
[374499188,1753325442897,-460.0,0.00019452,2]
[374499189,1753325442906,-151.0,0.00019452,2]
[374499190,1753325442915,-460.0,0.00019452,2]
[374499191,1753325442924,-463.39559709,0.00019452,2]
[374499192,1753325442933,-195.65,0.00019452,2]
[374499193,1753325442943,-465.16745707,0.00019452,2]
[374499194,1753325442952,-460.0,0.00019452,2]
[374499195,1753325442962,-462.04341054,0.00019452,2]
[374499196,1753325442971,-388.89043408,0.00019452,2]
[374499197,1753325442980,-491.17368732,0.00019452,2]
[374499198,1753325442989,-439.816677,0.00019452,2]
[374499199,1753325442999,-439.816677,0.00019452,2]
[374499200,1753325443008,-462.18805117,0.00019452,2]
[374499201,1753325443018,-460.0,0.00019452,2]
[374499202,1753325443028,-460.0,0.00019452,2]
[374499203,1753325443037,-471.62626853,0.00019452,2]
[374499204,1753325443047,-460.0,0.00019452,2]
[374499206,1753325443056,-464.37755864,0.00019452,2]
[374499208,1753325443066,-461.24917933,0.00019452,2]
[374499210,1753325443075,-460.0,0.00019452,2]
[374499211,1753325443085,-464.23581419,0.00019452,2]
[374499212,1753325443095,-465.18846415,0.00019452,2]
[374499213,1753325443104,-460.0,0.00019452,2]
[374499214,1753325443114,-572.14906612,0.00019452,2]
[374499216,1753325443124,-460.0,0.00019452,2]
[374499217,1753325443135,-464.16831374,0.00019452,2]
[374499218,1753325443144,-460.0,0.00019452,2]
[374499219,1753325443153,-460.0,0.00019452,2]
[374499220,1753325443163,-460.0,0.00019452,2]
[374499221,1753325443177,-468.68120064,0.00019452,2]
[374499222,1753325443186,-352.70812028,0.00019452,2]
[374499223,1753325443196,-219.99750344,0.00019452,2]
[374499225,1753325443206,-460.0,0.00019452,2]
[374499226,1753325443216,-470.53064523,0.00019452,2]
[374499227,1753325443226,-526.0849725,0.00019452,2]
[374499228,1753325443235,-875.5,0.00019452,2]
[374499229,1753325443245,-466.14026298,0.00019452,2]
[374499230,1753325443256,-463.11919013,0.00019452,2]
[374499232,1753325443266,-460.0,0.00019452,2]
[374499233,1753325443275,-460.0,0.00019452,2]
[374499234,1753325443284,-463.93976595,0.00019452,2]
[374499235,1753325443293,-460.0,0.00019452,2]
[374499236,1753325443303,-460.0,0.00019452,2]
[374499237,1753325443312,-464.32214727,0.00019452,2]
[374499238,1753325443322,-461.13877449,0.00019452,2]
[374499239,1753325443331,-653.37,0.00019452,2]
[374499240,1753325443341,-463.75369938,0.00019452,2]
[374499241,1753325443351,-460.0,0.00019452,2]
[374499242,1753325443361,-460.0,0.00019452,2]
[374499243,1753325443371,-460.0,0.00019452,2]
[374499244,1753325443380,-460.0,0.00019452,2]
[374499245,1753325443390,-460.0,0.00019452,2]
[374499246,1753325443400,-358.20810541,0.00019452,2]
[374499247,1753325443409,-460.0,0.00019452,2]
[374499248,1753325443419,-460.0,0.00019452,2]
[374499249,1753325443428,-460.0,0.00019452,2]
[374499250,1753325443438,-662.7,0.00019452,2]
[374499251,1753325443449,-460.0,0.00019452,2]
[374499252,1753325443458,-466.98934807,0.00019452,2]
[374499253,1753325443467,-460.0,0.00019452,2]
[374499254,1753325443477,-460.0,0.00019452,2]
[374499255,1753325443486,-460.0,0.00019452,2]
[374499256,1753325443495,-460.0,0.00019452,2]
[374499257,1753325443506,-372.92667167,0.00019452,2]
[374499258,1753325443516,-460.0,0.00019452,2]
[374499259,1753325443525,-460.0,0.00019452,2]
[374499260,1753325443535,-460.0,0.00019452,2]
[374499261,1753325443545,-484.22923534,0.00019452,2]
[374499262,1753325443554,-465.59350485,0.00019452,2]
[374499263,1753325443564,-460.0,0.00019452,2]
[374499264,1753325443574,-468.6606273,0.00019452,2]
[374499265,1753325443583,-460.0,0.00019452,2]
[374499266,1753325443593,-460.0,0.00019452,2]
[374499267,1753325443602,-460.0,0.00019452,2]
[374499268,1753325443612,-460.0,0.00019452,2]
[374499269,1753325443622,-463.91113481,0.00019452,2]
[374499270,1753325443632,-460.0,0.00019452,2]
[374499271,1753325443642,-151.0,0.00019452,2]
[374499272,1753325443651,-460.0,0.00019452,2]
[374499273,1753325443661,-460.0,0.00019452,2]
[374499274,1753325443671,-463.03804118,0.00019452,2]
[374499275,1753325443681,-460.0,0.00019452,2]
[374499276,1753325443691,-461.12172303,0.00019452,2]
[374499277,1753325443700,-460.0,0.00019452,2]
[374499278,1753325443710,-460.0,0.00019452,2]
[374499279,1753325443719,-460.0,0.00019452,2]
[374499280,1753325443729,-464.46800842,0.00019452,2]
[374499281,1753325443739,-460.0,0.00019452,2]
[374499282,1753325443748,-460.0,0.00019452,2]
[374499283,1753325443758,-151.0,0.00019452,2]
[374499284,1753325443767,-460.0,0.00019452,2]
[374499285,1753325443777,-460.0,0.00019452,2]
[374499286,1753325443786,-195.03883618,0.00019452,2]
[374499287,1753325443796,-460.0,0.00019452,2]
[374499288,1753325443805,-460.0,0.00019452,2]
[374499289,1753325443815,-460.0,0.00019452,2]
[374499290,1753325443824,-460.0,0.00019452,2]
[374499291,1753325443833,-460.0,0.00019452,2]
[374499292,1753325443844,-460.0,0.00019452,2]
[374499293,1753325443853,-460.0,0.00019452,2]
[374499294,1753325443862,-541.05189478,0.00019452,2]
[374499295,1753325443871,-460.0,0.00019452,2]
[374499296,1753325443880,-463.12765611,0.00019452,2]
[374499297,1753325443890,-163.52629931,0.00019452,2]
[374499298,1753325443900,-151.183589,0.00019452,2]
[374499299,1753325443909,-460.0,0.00019452,2]
[374499300,1753325443919,-151.0,0.00019452,2]
[374499301,1753325443928,-151.0,0.00019452,2]
[374499302,1753325443938,-460.0,0.00019452,2]
[374499303,1753325443947,-460.0,0.00019452,2]
[374499304,1753325443957,-151.0,0.00019452,2]
[374499305,1753325443967,-151.0,0.00019452,2]
[374499306,1753325443976,-461.85701078,0.00019452,2]
[374499307,1753325443986,-460.0,0.00019452,2]
[374499308,1753325443995,-248.383104,0.00019452,2]
[374499309,1753325444005,-248.383104,0.00019452,2]
[374499310,1753325444014,-460.0,0.00019452,2]
[374499311,1753325444023,-460.0,0.00019452,2]
[374499312,1753325444032,-460.0,0.00019452,2]
[374499313,1753325444042,-172.36816867,0.00019452,2]
[374499314,1753325444051,-511.7,0.00019452,2]
[374499315,1753325444060,-460.0,0.00019452,2]
[374499316,1753325444069,-460.0,0.00019452,2]
[374499317,1753325444079,-460.0,0.00019452,2]
[374499318,1753325444088,-460.0,0.00019452,2]
[374499319,1753325444097,-460.0,0.00019452,2]
[374499320,1753325444106,-460.0,0.00019452,2]
[374499321,1753325444116,-463.41241818,0.00019452,2]
[374499322,1753325444125,-460.0,0.00019452,2]
[374499323,1753325444135,-151.0,0.00019452,2]
[374499324,1753325444144,-462.4968254,0.00019452,2]
[374499325,1753325444153,-460.0,0.00019452,2]
[374499326,1753325444163,-460.0,0.00019452,2]
[374499327,1753325444174,-460.0,0.00019452,2]
[374499328,1753325444184,-467.11454924,0.00019452,2]
[374499329,1753325444193,-184.515118,0.00019452,2]
[374499330,1753325444202,-460.0,0.00019452,2]
[374499331,1753325444212,-184.515118,0.00019452,2]
[374499332,1753325444223,-460.0,0.00019452,2]
[374499333,1753325444232,-460.0,0.00019452,2]
[374499334,1753325444242,-460.0,0.00019452,2]
[374499335,1753325444252,-599.65593453,0.00019452,2]
[374499336,1753325444262,-462.4678689,0.00019452,2]
[374499337,1753325444271,-461.49204769,0.00019452,2]
[374499338,1753325444280,-460.0,0.00019452,2]
[374499339,1753325444290,-460.0,0.00019452,2]
[374499340,1753325444299,-151.0,0.00019452,2]
[374499341,1753325444309,-151.0,0.00019452,2]
[374499342,1753325444318,-460.0,0.00019452,2]
[374499343,1753325444328,-460.0,0.00019452,2]
[374499344,1753325444339,-460.0,0.00019452,2]
[374499345,1753325444352,-460.0,0.00019452,2]
[374499346,1753325444369,-460.0,0.00019452,2]
[374499347,1753325444379,-460.0,0.00019452,2]
[374499348,1753325444390,-460.0,0.00019452,2]
[374499349,1753325444399,-460.0,0.00019452,2]
[374499350,1753325444408,-463.04020801,0.00019452,2]
[374499351,1753325444418,-460.0,0.00019452,2]
[374499352,1753325444427,-462.09998759,0.00019452,2]
[374499353,1753325444437,-461.80901554,0.00019452,2]
[374499354,1753325444446,-651.65,0.00019452,2]
[374499355,1753325444456,-522.51865911,0.00019452,2]
[374499356,1753325444465,-460.0,0.00019452,2]
[374499357,1753325444475,-521.94795357,0.00019452,2]
[374499358,1753325444485,-460.0,0.00019452,2]
[374499359,1753325444494,-460.0,0.00019452,2]
[374499360,1753325444503,-425.30214515,0.00019452,2]
[374499361,1753325444512,-460.0,0.00019452,2]
[374499362,1753325444522,-460.0,0.00019452,2]
[374499363,1753325444531,-461.51390595,0.00019452,2]
[374499364,1753325444631,-460.0,0.00019452,2]
[374499365,1753325444642,-460.0,0.00019452,2]
[374499366,1753325444651,-460.0,0.00019452,2]
[374499367,1753325444660,-460.0,0.00019452,2]
[374499368,1753325444670,-460.0,0.00019452,2]
[374499369,1753325444679,-460.0,0.00019452,2]
[374499370,1753325444688,-460.0,0.00019452,2]
[374499371,1753325444698,-460.0,0.00019452,2]
[374499372,1753325444707,-568.79664235,0.00019452,2]
[374499373,1753325444717,-460.0,0.00019452,2]
[374499374,1753325444726,-460.0,0.00019452,2]
[374499375,1753325444735,-461.70183694,0.00019452,2]
[374499376,1753325444744,-460.0,0.00019452,2]
[374499377,1753325444754,-460.0,0.00019452,2]
[374499378,1753325444763,-5492.11,0.00019452,2]
[374499379,1753325444772,-362.303516,0.00019452,2]
[374499380,1753325444781,-460.0,0.00019452,2]
[374499381,1753325444790,-460.0,0.00019452,2]
[374499382,1753325444799,-460.0,0.00019452,2]
[374499383,1753325444809,-460.0,0.00019452,2]
[374499384,1753325444818,-460.0,0.00019452,2]
[374499385,1753325444828,-362.303516,0.00019452,2]
[374499386,1753325444837,-461.51378854,0.00019452,2]
[374499387,1753325444847,-1866.88,0.00019452,2]
[374499388,1753325444857,-460.0,0.00019452,2]
[374499389,1753325444866,-460.0,0.00019452,2]
[374499390,1753325444875,-460.0,0.00019452,2]
[374499391,1753325444884,-460.0,0.00019452,2]
[374499392,1753325444894,-460.0,0.00019452,2]
[374499393,1753325444903,-460.0,0.00019452,2]
[374499394,1753325444913,-460.0,0.00019452,2]
[374499395,1753325444922,-460.0,0.00019452,2]
[374499396,1753325444932,-460.0,0.00019452,2]
[374499397,1753325444941,-460.0,0.00019452,2]
[374499398,1753325444950,-463.94729004,0.00019452,2]
[374499399,1753325444960,-575.49148594,0.00019452,2]
[374499400,1753325444969,-460.0,0.00019452,2]
[374499401,1753325444979,-462.86931093,0.00019452,2]
[374499402,1753325444988,-460.0,0.00019452,2]
[374499403,1753325444997,-460.0,0.00019452,2]
[374499404,1753325445006,-460.0,0.00019452,2]
[374499405,1753325445016,-3041.43,0.00019452,2]
[374499406,1753325445025,-460.0,0.00019452,2]
[374499407,1753325445035,-455.50399767,0.00019452,2]
[374499408,1753325445043,-460.0,0.00019452,2]
[374499409,1753325445053,-462.86795479,0.00019452,2]
[374499410,1753325445062,-460.0,0.00019452,2]
[374499411,1753325445072,-729.9,0.00019452,2]
[374499412,1753325445081,-464.65613874,0.00019452,2]
[374499413,1753325445092,-460.0,0.00019452,2]
[374499414,1753325445101,-460.0,0.00019452,2]
[374499415,1753325445111,-460.0,0.00019452,2]
[374499416,1753325445120,-522.05,0.00019452,2]